Cogmind - Beta 17.1 @@@ ROGUE MODE // 2026.09.13 @ 05:07:55 Player: Kite Result: Destroyed by Y-54 Guardian with Gatling Laser Performance ------------- Evolutions (1) 500 Regions Visited (3) 600 Robots Destroyed (79) 395 Value Destroyed (1897) 1897 Prototype IDs (3) 60 Alien Tech Used (0) 0 Bonus (8260) 8260 TOTAL SCORE: 11712 Bonus ------- High Alert Combat Kills 290 Follower Combat Kills 100 Prayed to X0-1V1 5000 Major X0-1V1 Interference 3100 Friendly Fire -230 Cogmind --------- Core Integrity 0/400 Matter 267/300 Energy 1080/1080 System Corruption 0% Temperature Cool (6) Movement Core (400) Ox7 Location -9/Storage Parts ------- > --- POWER (1) -------- Heavy Ion Engine > --- PROPULSION (3) --- (None) > --- UTILITY (3) ------ Medium Storage Unit > --- WEAPON (2) ------- Mace Axe > --- INVENTORY (10) --- Heavy Ion Engine Large Matter Pod (88) Flail Axe Axe Peak State ------------ > --- POWER ------------ Heavy Ion Engine > --- PROPULSION ------- Aluminum Leg Aluminum Leg Carbon-fiber Leg > --- UTILITY ---------- Medium Storage Unit Medium Armor Plating X0-1V1's Piety Tracker > --- WEAPON ----------- Mace Axe > --- INVENTORY -------- Heavy Ion Engine Aluminum Leg Aluminum Leg Large Matter Pod Light Armor Plating Medium Armor Plating Flail Axe Axe Axe [Rating: 31] Favorites ----------- Power Ion Engine Engine Ion Engine Propulsion Aluminum Leg Treads Light Treads Leg Aluminum Leg Utility Medium Storage Unit Device X0-1V1's Piety Tracker Storage Medium Storage Unit Protection Medium Armor Plating Weapon EM Pulse Gun Energy Gun EM Pulse Gun Ballistic Gun Assault Rifle Launcher Rocket Launcher Impact Weapon Mace Slashing Weapon Axe Build | -11 -10 -9 -9 ------- Run | Yrd Mat Mat Sto Slots Evolved 2 | . . 2 . Power . | . . . . Propulsion 1 | . . 1 . Utility 1 | . . 1 . Weapon . | . . . . Parts Attached 43 | 6 12 11 14 Power 6 | 1 1 1 3 Engine 6 | 1 1 1 3 Core . | . . . . Reactor . | . . . . Propulsion 13 | 2 3 2 6 Treads 2 | 2 . . . Leg 11 | . 3 2 6 Wheel . | . . . . Hover . | . . . . Flight . | . . . . Utility 10 | 1 3 2 4 Device 2 | . 1 . 1 Storage 2 | 1 1 . . Processor . | . . . . Hackware . | . . . . Protection 6 | . 1 2 3 Artifact . | . . . . Weapon 14 | 2 5 6 1 Energy Gun 7 | . 3 4 . Energy Cannon . | . . . . Ballistic Gun 3 | 2 1 . . Ballistic Cannon . | . . . . Launcher 1 | . 1 . . Special Weapon . | . . . . Impact Weapon 1 | . . 1 . Slashing Weapon 2 | . . 1 1 Piercing Weapon . | . . . . Special Melee Weapon . | . . . . Unidentified Prototypes 3 | . 1 1 1 Parts Lost 24 | . 7 2 15 Power 2 | . 1 . 1 Propulsion 9 | . 2 . 7 Utility 6 | . . 1 5 Weapon 7 | . 4 1 2 Highest Loss Streak 6 | . 5 1 6 To Critical Strikes . | . . . . Average Backups 7 | 2 6 9 9 Power . | . . 1 1 Propulsion 2 | 1 2 3 2 Utility 1 | . 1 2 2 Weapon 2 | . 1 2 3 Tool/Special . | . . . . Unused Backups 15 | . 4 3 8 Power 3 | . . 1 2 Propulsion 3 | . 1 1 1 Utility 2 | . 1 . 1 Weapon 6 | . 1 1 4 Tool/Special 1 | . 1 . . Average Slot Usage (%) 94 | . 93 96 94 Engine 12 | . 13 11 10 Treads 4 | . 8 . . Leg 24 | . 19 30 30 Device 5 | . 1 11 9 Storage 12 | . 14 11 11 Protection 8 | . 6 11 9 Energy Gun 8 | . 11 14 . Ballistic Gun 8 | . 15 1 . Impact Weapon 2 | . . 2 8 Slashing Weapon 3 | . . 2 12 Peak Build Rating 31 | 6 21 28 31 Average Rating 15 | 4 7 26 26 On Entrance 13 | . 6 21 28 Avg Prop Armor Cover (%) . | . . . . Naked Turns . | . . . . Heaviest Build 32 | 14 22 31 32 Greatest Support 40 | 40 40 30 35 Greatest Overweight (x) 1 | . 1 1 1 Average Overweight (x) . | . . . . Largest Inventory Capacity 10 | 8 10 10 10 Average Capacity 9 | 7 8 10 10 Most Carried 10 | 3 10 10 10 Average Carried 7 | 2 6 9 9 Final Capacity 10 | 8 10 10 10 Final Carried 10 | 3 10 10 5 Class Distribution -------------------- 100% | Mutant Dominant Class ---------------- Mutant | -10/Materials Mutant | -9/Materials Mutant | -9/Storage Resources | -11 -10 -9 -9 ----------- Run | Yrd Mat Mat Sto Matter Collected 1134 | 72 515 122 425 Remotely . | . . . . Salvage Created 2599 | . 799 580 1220 Parts 147 | . 43 44 60 Haulers Intercepted 5 | . 1 1 3 Recyclers Shooed . | . . . . Parts Field Recycled . | . . . . Retrieved Matter . | . . . . Parts Self-Destructed . | . . . . Prevented . | . . . . Parts Restored . | . . . . Kills | -11 -10 -9 -9 ------- Run | Yrd Mat Mat Sto Combat Hostiles Destroyed 59 | . 17 17 25 Melee 10 | . . . 10 Guns 20 | . 12 8 . AOE 26 | . 4 8 14 Classes Destroyed 11 | . 6 1 4 Worker 2 | . 1 . 1 Builder 7 | . 4 1 2 Hauler 5 | . 1 1 3 Recycler 3 | . . . 3 Mechanic 1 | . . . 1 Watcher 1 | . 1 . . Swarmer 18 | . 3 8 7 Grunt 29 | . 14 4 11 Duelist 1 | . . . 1 Protector 1 | . . . 1 Sentry 10 | . . 5 5 Thug 1 | . . . 1 Best Kill Streak 13 | . 9 9 13 Combat Bots Only 9 | . 4 9 8 Max Kills in Single Turn 6 | . 3 3 6 Gunslinging 1 | . . 1 . Exploded 4 | . 3 3 4 Melee 1 | . . . 1 Uniques/NPCs Destroyed . | . . . . Combat | -11 -10 -9 -9 -------- Run | Yrd Mat Mat Sto Hostile Shots Fired 345 | . 119 52 174 Missed 97 | . 30 13 54 Hits 248 | . 89 39 120 Melee 13 | . . . 13 Projectile 235 | . 89 39 107 Critical Strikes 7 | . . 2 5 Damage Taken 3223 | . 1000 513 1710 Core 646 | . 186 81 379 Absorbed by Shields . | . . . . Core Remaining (%) 62 | 100 25 . . Volleys Fired 108 | . 69 30 9 Largest 2 | . 2 2 1 Hottest 90 | . 80 90 33 Shots Fired 194 | . 130 55 9 Gun 178 | . 128 50 . Cannon . | . . . . Launcher 16 | . 2 5 9 Special . | . . . . Kinetic 84 | . 79 5 . Thermal . | . . . . Explosive 16 | . 2 5 9 Electromagnetic 94 | . 49 45 . Robot Hit Streak 19 | . 13 19 2 Robot Miss Streak 4 | . 4 3 2 Penetration Max . | . . . . Secondary Targets 2 | . . 2 . Max Gunslinging Chain 1 | . . 1 . Shots Hit Robots 177 | . 82 40 55 Core Hits 110 | . 35 33 42 Critical Kills 2 | . 1 . 1 Critical Parts Destroyed 5 | . . . 5 Critical Strikes 11 | . 1 . 10 Destroy 1 | . 1 . . Smash 6 | . . . 6 Sever 4 | . . . 4 Melee Attacks 80 | . . 1 79 Impact 41 | . . 1 40 Slashing 39 | . . . 39 Piercing . | . . . . Sneak Attacks 5 | . . 1 4 Combat Hostiles . | . . . . Follow-up Attacks 12 | . . . 12 Damage Inflicted 5728 | . 1351 1351 3026 Guns 1598 | . 1014 584 . Cannons . | . . . . Explosions 2325 | . 334 684 1307 Melee 1789 | . . 83 1706 Ramming 16 | . 3 . 13 Kinetic 560 | . 551 9 . Thermal 226 | . 63 163 . Explosive 2099 | . 271 521 1307 Electromagnetic 1038 | . 463 575 . Impact 903 | . . 83 820 Slashing 886 | . . . 886 Piercing . | . . . . Highest Corruption . | . . . . Average Corruption . | . . . . Corruption Purged . | . . . . Corruption Blocked . | . . . . Overload Shots . | . . . . Overflow Damage 415 | . 27 94 294 Projectiles . | . . . . Explosions 109 | . 27 41 41 Melee 306 | . . 53 253 Knockbacks 2 | . . . 2 Impact 2 | . . . 2 Kinetic . | . . . . Secondary . | . . . . Self-Inflicted Damage 132 | . 13 41 78 Shots 4 | . 1 1 2 Rammed 2 | . 2 . . Targets Rammed 6 | . 2 1 3 Kicked 4 | . . 1 3 Crushed . | . . . . Highest Temperature 207 | . 141 207 33 Average Temperature 66 | . 55 81 18 Received Heat Transfer 1089 | . 477 156 456 Siege Activations . | . . . . Martial Activations . | . . . . Shielding Activations . | . . . . Robots Disrupted . | . . . . Combat Hostiles . | . . . . Robots Corrupted 3 | . 1 1 1 Combat Hostiles 3 | . 1 1 1 Parts Fried 9 | . 2 5 2 Impact Corruptions 8 | . . 2 6 Robots Melted . | . . . . Combat Hostiles . | . . . . Parts Melted . | . . . . Heat Transferred 400 | . 100 300 . Parts Sabotaged . | . . . . Parts Stolen . | . . . . Parts Stripped . | . . . . Power Chain Reactions 4 | . 1 3 . Alert | -11 -10 -9 -9 ------- Run | Yrd Mat Mat Sto Maximum Alert Level 3 | . . 1 3 Low Security (%) 63 | 100 100 31 1 Level 1 15 | . . 68 12 Level 2 11 | . . . 45 Level 3 10 | . . . 41 Level 4 . | . . . . Level 5 . | . . . . High Security . | . . . . Max Security . | . . . . Peak Influence 874 | . 115 367 874 Initial 127 | . . 31 127 Average 218 | . 39 226 627 Influence Increases 2207 | . 547 514 1146 Destroy 0b10 Robot/C 1240 | . 340 340 560 Destroy 0b10 Robot/NC 100 | . 35 10 55 Destroy Leader 262 | . 84 82 96 Allied During Kill 32 | . . . 32 Successful Hack 20 | . 7 13 . Select Force Hacks 60 | . 60 . . Disable Machine 90 | . . 30 60 Destroy Structure 133 | . 21 39 73 Lose Combat Pursuer 60 | . . . 60 Miscellaneous 210 | . . . 210 Influence Decreases 1390 | . 471 287 632 Entered New Map 221 | . . 45 176 Time Decay 909 | . 401 222 286 Lost Part 240 | . 70 20 150 Lost Ally 20 | . . . 20 Squads Dispatched 11 | . 5 2 4 Investigation 5 | . 3 1 1 Extermination . | . . . . Reinforcement 4 | . 2 1 1 Assault 2 | . . . 2 Garrison . | . . . . Intercept . | . . . . Searches Triggered . | . . . . Construction Impeded . | . . . . Haulers Reinforced . | . . . . Active Scanning Responses . | . . . . Cargo Convoy Interrupts . | . . . . Stealth | -11 -10 -9 -9 --------- Run | Yrd Mat Mat Sto Distress Signals 7 | . 3 1 3 Communications Jammed . | . . . . Distress Signals . | . . . . Times Spotted 83 | . 26 19 38 Peak Tracking Total 8 | . 6 4 8 Tactical Retreats 3 | . . . 3 Traps | -11 -10 -9 -9 ------- Run | Yrd Mat Mat Sto Traps Triggered . | . . . . Indirectly . | . . . . Trap Hack Attempts . | . . . . Triggered . | . . . . Disarmed . | . . . . Reprogrammed . | . . . . Reused . | . . . . Traps Extracted . | . . . . Installed . | . . . . Triggered . | . . . . Machines | -11 -10 -9 -9 ---------- Run | Yrd Mat Mat Sto Machines Disabled 6 | . . 2 4 Max in Single Turn 2 | . . 2 1 Machines Repaired . | . . . . Machines Dismantled . | . . . . Machines Sabotaged . | . . . . Overloaded Fab Kills . | . . . . Hacking | -11 -10 -9 -9 --------- Run | Yrd Mat Mat Sto Machines Accessed 9 | . 5 2 2 Terminals 7 | . 3 2 2 Fabricators . | . . . . Repair Stations . | . . . . Recycling Units 2 | . 2 . . Scanalyzers . | . . . . Garrison Access . | . . . . Total Hacks 18 | . 9 5 4 Successful 7 | . 4 2 1 Failed 10 | . 4 3 3 Catastrophic 1 | . 1 . . Database Lockouts 1 | . 1 . . Manual 17 | . 11 5 1 Terminals 15 | . 6 5 4 Fabricators . | . . . . Repair Stations . | . . . . Recycling Units 3 | . 3 . . Scanalyzers . | . . . . Garrison Access . | . . . . Terminal Hacks 4 | . 2 1 1 Part Schematic 1 | . 1 . . Branch Access Points 1 | . . 1 . Hauler Manifests 2 | . 1 . 1 Fabricator Hacks . | . . . . Repair Station Hacks . | . . . . Recycling Unit Hacks . | . . . . Scanalyzer . | . . . . Garrison Access Hacks . | . . . . Unauthorized Hacks 3 | . 2 1 . Terminals 1 | . . 1 . Botnet 1 | . . 1 . Fabricators . | . . . . Repair Stations . | . . . . Recycling Units 2 | . 2 . . Tunnel 2 | . 2 . . Scanalyzers . | . . . . Garrison Access . | . . . . Data Cores Recovered . | . . . . Used . | . . . . Hacking Detections 5 | . 2 2 1 Full Trace Events 2 | . 1 . 1 Feedback Events . | . . . . Feedback Blocked . | . . . . Robot Schematics Acquired . | . . . . Robots Built . | . . . . Authchips . | . . . . Time . | . . . . Total Robot Build Rating . | . . . . Part Schematics Acquired 1 | . 1 . . Parts Built . | . . . . Authchips . | . . . . Time . | . . . . Total Part Build Rating . | . . . . Part Studies Acquired . | . . . . Parts Repaired . | . . . . Time . | . . . . Parts Recycled . | . . . . Recycled Matter . | . . . . Retrieved Matter . | . . . . Retrieved Components . | . . . . Parts Scanalyzed . | . . . . Part Schematics Acquired . | . . . . Parts Damaged . | . . . . Bothacking | -11 -10 -9 -9 ------------ Run | Yrd Mat Mat Sto Used RIF Installer . | . . . . Robots Hacked . | . . . . Non-combat . | . . . . Combat . | . . . . Robot Hacks Applied . | . . . . Relay Couplers Released . | . . . . Fabnet Peak Effective % . | . . . . Robots Rewired . | . . . . Allies Hacked . | . . . . Hacks Repelled . | . . . . Allies | -11 -10 -9 -9 -------- Run | Yrd Mat Mat Sto Total Allies 2 | . . . 2 Largest Group 2 | . . . 2 Highest-Rated Group 62 | . . . 62 Highest-Rated Ally 31 | . . . 31 Total Orders . | . . . . Ally Attacks 23 | . . . 23 Total Damage 337 | . . . 337 Kills 4 | . . . 4 Allies Corrupted . | . . . . Allies Melted . | . . . . X0-1V1 Amusement Gains 104 | . 19 . 85 Average Entertainment 14 | . 19 9 17 Good Acts 5 | . . . 5 Bad Acts 14 | . 1 2 11 Intel | -11 -10 -9 -9 ------- Run | Yrd Mat Mat Sto Active Infowar (turns) . | . . . . Robot Analysis Total . | . . . . Derelict Logs Recovered . | . . . . Drone Launches . | . . . . Drone Recoveries . | . . . . Exploration | -11 -10 -9 -9 ------------- Run | Yrd Mat Mat Sto Turns Passed 2549 | 80 1372 466 631 Spaces Moved 1244 | 45 757 223 219 Core 3 | 3 . . . Treads 214 | 42 172 . . Legs 1027 | . 585 223 219 Wheels . | . . . . Hover . | . . . . Flight . | . . . . Fastest Speed 50 | 50 120 120 120 Average Speed 145 | 152 147 152 126 Slowest Speed 190 | 160 190 190 190 Overloaded Moves . | . . . . Propulsion Burnouts . | . . . . Robots Hopped . | . . . . Potential Cave-ins . | . . . . Cave-ins Triggered . | . . . . Exploration Rate (%) 41 | 3 94 21 49 Regions Visited 3 Branch Regions 1 Pre-discovered Areas 2 | . 2 . . Known Exits Taken 1 | . . 1 . Unknown Exits Taken 2 | 1 1 . . Scrap Searched . | . . . . Spaces Dug 1 | . . . 1 Terrain Destroyed 136 | . 27 39 70 Melee 1 | . . . 1 Projectile . | . . . . AOE 135 | . 27 39 69 Terrain Rammed . | . . . . Walls Destroyed . | . . . . Machines Disabled . | . . . . Actions | -11 -10 -9 -9 --------- Run | Yrd Mat Mat Sto Total 1679 | 53 881 297 448 Wait 137 | . 17 3 117 Move 1241 | 44 756 222 219 Hop . | . . . . Pick Up 38 | 3 18 11 6 Fast Attach 17 | 6 3 2 6 Attach 21 | . 6 6 9 Detach . | . . . . Swap 22 | . 3 8 11 Drop 26 | . 7 13 6 Fire 108 | . 69 30 9 Melee 63 | . . 1 62 Ram . | . . . . Kick 4 | . . 1 3 Crush 2 | . 2 . . Escape Stasis . | . . . . Rewire . | . . . . Trap . | . . . . Miscellaneous . | . . . . Route ------- -11/Scrapyard -10/Materials (discovered 5 exits: *Mat x3 / [*Min] / [*Sub]) -9/Materials (discovered 2 exits: *Min / *Sto) -9/Storage History --------- Turn | Location | Event 4 | -11/Scrapyard | Discovered new exit (range 15) 81 | -11/Scrapyard | Entered Materials 310 | -10/Materials | Build established: Mutant 422 | -10/Materials | Discovered new exit (range 10) 423 | -10/Materials | Central database locked down 537 | -10/Materials | Lost 5 parts (1p2n2w) 618 | -10/Materials | Core integrity fell below 50% 630 | -10/Materials | Discovered new exit (range 15) 851 | -10/Materials | Discovered new exit (range 14) 1152 | -10/Materials | Discovered new exit (range 16) 1298 | -10/Materials | Discovered new exit (range 8) 1326 | -10/Materials | Prayed at D.C.S.S. Altar Unit 1453 | -10/Materials | Entered another Materials area 1453 | -9/Materials | Evolved 2 slots: Propulsion x1, Utility x1 1637 | -9/Materials | Destroyed 9 combat bots 1837 | -9/Materials | Discovered new exit (range 5) 1888 | -9/Materials | Discovered new exit (range 12) 1890 | -9/Materials | Identified exit to Mines 1890 | -9/Materials | Identified exit to Storage 1919 | -9/Materials | Entered Storage 1923 | -9/Storage | X0-1V1 sent hostile S-10 Pest (x4) 2004 | -9/Storage | X0-1V1 added 0b10 threat records associated with you (considerable) 2211 | -9/Storage | Core integrity restored by X0-1V1 (+60) 2232 | -9/Storage | Met a pair of Derelict thieves 2271 | -9/Storage | X0-1V1 foreshadows a heat wave 2325 | -9/Storage | Lost 3 parts (2u1w) 2346 | -9/Storage | Destroyed 8 combat bots 2397 | -9/Storage | X0-1V1 announced a LAN party 2404 | -9/Storage | Ambient heat levels rising (+10) 2481 | -9/Storage | X0-1V1 upgraded hostiles (x2) 2485 | -9/Storage | Core integrity fell below 50% 2527 | -9/Storage | Lost 6 parts (3n2u1w) 2534 | -9/Storage | Core integrity fell below 20% 2549 | -9/Storage | Ambient heat levels rising (+10) 2550 | -9/Storage | Destroyed by Y-54 Guardian with Gatling Laser Last Messages --------------- 02541_ Destroyed Microactuators. 02541_ L-41 Fighter system corrupted by crushing effect. 02541_ L-41 Fighter overheating. 02542_ L-41 Fighter heat damages core (-13). 02542_ L-41 Fighter system terminally corrupted. 02542_ Carbon-fiber Leg fried. 02543_ X0-1V1 projects screaming human faces on all surfaces in the area (-11% melee accuracy). 02543_ Carbon-fiber Leg destroyed. 02546_ Axe follow-up attack on Y-54 Guardian. 02549_ ALERT: Sterilization system anomaly impacting ambient heat levels +10. 02549_ Y-54 Guardian suffers critical hit (Smash). 02549_ Destroyed Imp. Heat Sink. 02549_ Y-54 Guardian system corrupted by crushing effect. 02550_ X0-1V1 snickers! Map ----- +----------------------------------------------------+ | ????####### #! [[#?????????????????????????????? | | ##### # " [ #?????????????????????????????? | | # [#?????????????????????????????? | | + " #?????????????????????????????? | | ^ ##T# ]] #?????????????????????????????? | | #"### #### ] ]#?????????????????????????????? | | ###### ##??######?????????????????????????????? | | # #??????????????????????????????????????? | | " # = #??????????????????????????????????????? | | " #[ #??????????????????????????????????????? | | " #* !#??????????????????????????????????????? | | +%= #??????????????????????????????????????? | | " # #??????????????????????????????????????? | | " ! # #??????????????????????????????????????? | | " # #??????????????????????????????????????? | | # #??????????????????????????????????????? | | #### # ##?????????????????????????????????????? | | ##??????#+##+##???????????????????????? | | # * #?????? ???????????????????????? | | """" ]%=# #??????? #????##?????????????????? | | !!= #= ###?????? ##### ####??????????????? | | !*=" ## ######## # = #??????????????? | | """" # # # # [[""" #??????????????? | | [## """" # # *%["T" #??????????????? | | =[%#! """" # [#%! [ #??????????????? | | [ =#* """" # [#@[[ #??????????????? | | #### %=!=# """" " [%Y=[% """ #??????????????? | | #### =!%## # Y#[% """ #??????????????? | | =[%[## # [# """ #??????????????? | | " %=%##% # =#! #??????????????? | | " !%=########### * ##########??????????????? | | % # #????????#* *#???????????????????????? | | " ############ **#???????????????????????? | | # + # #???????????????????????? | | # ## """" # ##########??????????????? | | + ## //"? # ?????????? | | ###### ## "=!""" + #####????????????????? | | ?????# ## """ !" # #????????????????????? | | ?????# ## ?"=!" # #????????????????????? | | ?????# ## """ " ####????????????????????? | | ?????# ## "!= #???????????????????????? | | ?????# ###########"%"=####????????????????????? | | ?????# #???????# #????????????????????? | | ????? #???????# #????????????????????? | | ????? ^ #???????# #????????????????????? | | ?????^ ????????# """ """ #????????????????????? | | ?????##+#????????# """ """ #????????????????????? | | ????????????????# """ """ #????????????????????? | | ????????????????## #????????????????????? | | ?????????????????# #????????????????????? | +----------------------------------------------------+ Best States ------------- Heat Dissipation 125 Energy Generation 14 Energy Capacity 1080 Matter Stores 300 Matter Capacity 300 Sight Range 16 Terrain Scan Density 10 Armor Coverage 225 Evasion (%) 55 Recoil Reduction 2 Item Schematics ----------------- Huge Storage Unit | -10/Materials | Hacked Robot Schematics ------------------ None Fabricated ------------ Nothing Repaired ---------- Nothing Studied --------- None Alien Tech Used ----------------- None Achievements -------------- Chaos Is Inevitable Challenges ------------ None Game ------ Seed AlertSpreadCloak Manual? 0 Play Time 00:17:56 Cumulative 612.5 hours Start 2026.09.13 @ 04:49:00 End 2026.09.13 @ 05:07:55 Sessions 1 Manual Loads 0 Difficulty Rogue Special Mode None Game No. 500 Rogue 500 Adventurer 0 Explorer 0 Win Type - Total 20 Types 12/0/3/1/0/0/0/2/0/2 Lore% 70 Gallery% 72 Achievement% 69 Wizard Run 0 Options --------- Layout 1 ASCII 0 Keyboard 0 Movement Mouse Keybinds 0 Fullscreen 2 Font 24/Cog Map View 50x35 Zoom Use 29% Tactical HUD 1 Map Filters NONE Filters NONE Steam 1 RUN: a2dca4b2-0c36-49fa-825f-911797ac8817